[Event "*** Qualifier 1: Titled Tuesday 3|2 Blitz"]
[Site "Chess.com"]
[Date "2017.04.04"]
[Round "6"]
[White "Rodalquilar"]
[Black "RobertoJBM"]
[Result "1-0"]
[WhiteElo "2568"]
[BlackElo "2398"]
[TimeControl "180+2"]
[EndTime "14:25:51 PDT"]
[Termination "Rodalquilar won on time"]

1. d4 {[%clk 0:03:02]} 1... d5 {[%clk 0:02:58.2]} 2. Bf4 {[%clk 0:03:02.7]} 2...
c6 {[%clk 0:03:00.1]} 3. e3 {[%clk 0:03:03.4]} 3... Qb6 {[%clk 0:02:58.2]} 4. b3
{[%clk 0:03:04.4]} 4... Bf5 {[%clk 0:02:53.9]} 5. Bd3 {[%clk 0:03:05.1]} 5...
Bxd3 {[%clk 0:02:53.8]} 6. Qxd3 {[%clk 0:03:07]} 6... e6 {[%clk 0:02:55.2]} 7.
Nf3 {[%clk 0:03:06.3]} 7... Nd7 {[%clk 0:02:46]} 8. O-O {[%clk 0:03:07.1]} 8...
Ngf6 {[%clk 0:02:46.7]} 9. c4 {[%clk 0:03:01.8]} 9... Be7 {[%clk 0:02:46.3]} 10.
Nc3 {[%clk 0:02:55.9]} 10... O-O {[%clk 0:02:46.2]} 11. c5 {[%clk 0:02:56.7]}
11... Qa6 {[%clk 0:02:41.7]} 12. Qxa6 {[%clk 0:02:53.1]} 12... bxa6 {[%clk
0:02:43.6]} 13. h3 {[%clk 0:02:41.8]} 13... Rfc8 {[%clk 0:02:44]} 14. b4 {[%clk
0:02:42.1]} 14... Bd8 {[%clk 0:02:44.5]} 15. a4 {[%clk 0:02:40.9]} 15... Bc7
{[%clk 0:02:44.9]} 16. Bxc7 {[%clk 0:02:36.6]} 16... Rxc7 {[%clk 0:02:46.8]} 17.
b5 {[%clk 0:02:37.9]} 17... Ne4 {[%clk 0:02:37.8]} 18. Nxe4 {[%clk 0:01:20.7]}
18... dxe4 {[%clk 0:02:39.7]} 19. Nd2 {[%clk 0:01:22.1]} 19... axb5 {[%clk
0:02:37.6]} 20. axb5 {[%clk 0:01:24]} 20... cxb5 {[%clk 0:02:39.3]} 21. Nxe4
{[%clk 0:01:25.2]} 21... a6 {[%clk 0:02:11]} 22. Rfb1 {[%clk 0:01:22]} 22...
Rca7 {[%clk 0:02:11.1]} 23. Nd6 {[%clk 0:01:19.6]} 23... Nf6 {[%clk 0:02:03.8]}
24. c6 {[%clk 0:00:55.4]} 24... Kf8 {[%clk 0:02:00.5]} 25. e4 {[%clk 0:00:45]}
25... Ke7 {[%clk 0:01:53.5]} 26. e5 {[%clk 0:00:46.2]} 26... Nd5 {[%clk
0:01:54]} 27. Ra5 {[%clk 0:00:28.9]} 27... Nc3 {[%clk 0:01:39.9]} 28. Re1 {[%clk
0:00:21.3]} 28... Na4 {[%clk 0:01:37.9]} 29. Ra1 {[%clk 0:00:15.9]} 29... f6
{[%clk 0:01:31.1]} 30. c7 {[%clk 0:00:11.1]} 30... Kd7 {[%clk 0:01:24.5]} 31.
c8=Q+ {[%clk 0:00:11.7]} 31... Rxc8 {[%clk 0:01:24.8]} 32. Nxb5 {[%clk
0:00:13.6]} 32... axb5 {[%clk 0:00:57.9]} 33. Rxa7+ {[%clk 0:00:15.5]} 33... Rc7
{[%clk 0:00:59.8]} 34. Rxc7+ {[%clk 0:00:13.9]} 34... Kxc7 {[%clk 0:01:01.7]}
35. Rc1+ {[%clk 0:00:12.5]} 35... Kb6 {[%clk 0:00:58.5]} 36. d5 {[%clk
0:00:13.5]} 36... Nc5 {[%clk 0:00:56.1]} 37. d6 {[%clk 0:00:11.9]} 37... Nd7
{[%clk 0:00:56.8]} 38. f4 {[%clk 0:00:09.7]} 38... fxe5 {[%clk 0:00:55.9]} 39.
Rc7 {[%clk 0:00:10.5]} 39... Nb8 {[%clk 0:00:50.9]} 40. fxe5 {[%clk 0:00:11.5]}
40... b4 {[%clk 0:00:52.5]} 41. Rc8 {[%clk 0:00:08.9]} 41... Nd7 {[%clk
0:00:52.4]} 42. Rc4 {[%clk 0:00:05.7]} 42... Nxe5 {[%clk 0:00:49.4]} 43. Re4
{[%clk 0:00:06.8]} 43... Nc6 {[%clk 0:00:45.8]} 44. Rxe6 {[%clk 0:00:07.3]}
44... b3 {[%clk 0:00:46.9]} 45. d7 {[%clk 0:00:08]} 45... b2 {[%clk 0:00:48]}
46. d8=Q+ {[%clk 0:00:09.2]} 46... Kb5 {[%clk 0:00:48.9]} 47. Qd3+ {[%clk
0:00:09.5]} 47... Ka4 {[%clk 0:00:48.2]} 48. Rxc6 {[%clk 0:00:10.1]} 1-0

[Event "*** Qualifier 1: Titled Tuesday 3|2 Blitz"]
[Site "Chess.com"]
[Date "2017.04.04"]
[Round "6"]
[White "Swarajan"]
[Black "micfel"]
[Result "1-0"]
[WhiteElo "1953"]
[BlackElo "2112"]
[TimeControl "180+2"]
[EndTime "14:26:03 PDT"]
[Termination "Swarajan won on time"]

1. d4 {[%clk 0:03:02]} 1... d5 {[%clk 0:02:53]} 2. c4 {[%clk 0:03:01.4]} 2...
dxc4 {[%clk 0:02:53.4]} 3. Nf3 {[%clk 0:03:01.5]} 3... c5 {[%clk 0:02:53.2]} 4.
e3 {[%clk 0:03:00.8]} 4... Nc6 {[%clk 0:02:50]} 5. Bxc4 {[%clk 0:03:00.6]} 5...
e6 {[%clk 0:02:47.8]} 6. O-O {[%clk 0:03:01]} 6... Nf6 {[%clk 0:02:47.9]} 7. Nc3
{[%clk 0:03:01.3]} 7... cxd4 {[%clk 0:02:46.5]} 8. exd4 {[%clk 0:03:01.6]} 8...
Be7 {[%clk 0:02:46.5]} 9. Bg5 {[%clk 0:03:01.8]} 9... O-O {[%clk 0:02:44]} 10.
Bd3 {[%clk 0:02:50.6]} 10... h6 {[%clk 0:02:42.4]} 11. Bh4 {[%clk 0:02:50.5]}
11... b6 {[%clk 0:02:38]} 12. Rc1 {[%clk 0:02:42]} 12... Bb7 {[%clk 0:02:38]}
13. Qe2 {[%clk 0:02:42.3]} 13... Nb4 {[%clk 0:02:36.3]} 14. Rfd1 {[%clk
0:02:39.1]} 14... Nxd3 {[%clk 0:02:34]} 15. Qxd3 {[%clk 0:02:39.6]} 15... Rc8
{[%clk 0:02:32.9]} 16. Ne5 {[%clk 0:02:40]} 16... a6 {[%clk 0:02:26.9]} 17. Qg3
{[%clk 0:02:40.1]} 17... b5 {[%clk 0:02:18]} 18. a3 {[%clk 0:02:39.1]} 18... Nh5
{[%clk 0:02:11.3]} 19. Bxe7 {[%clk 0:02:36]} 19... Qxe7 {[%clk 0:02:11.4]} 20.
Qg4 {[%clk 0:02:17.6]} 20... Nf6 {[%clk 0:02:05.3]} 21. Qg3 {[%clk 0:02:05]}
21... Rfd8 {[%clk 0:02:02.6]} 22. Ng4 {[%clk 0:01:54.8]} 22... Nxg4 {[%clk
0:02:00.3]} 23. Qxg4 {[%clk 0:01:56.7]} 23... Rc4 {[%clk 0:01:57.5]} 24. Ne2
{[%clk 0:01:46.9]} 24... Rxc1 {[%clk 0:01:43.1]} 25. Rxc1 {[%clk 0:01:46.4]}
25... Bd5 {[%clk 0:01:38.2]} 26. Qf4 {[%clk 0:01:38.8]} 26... Bc4 {[%clk
0:01:32.3]} 27. Ng3 {[%clk 0:01:21.4]} 27... Rd5 {[%clk 0:01:21.6]} 28. h3
{[%clk 0:01:13.7]} 28... Qd7 {[%clk 0:01:15.7]} 29. b3 {[%clk 0:00:52.7]} 29...
Bxb3 {[%clk 0:01:14.1]} 30. Rc7 {[%clk 0:00:53.3]} 30... Qe8 {[%clk 0:01:13.8]}
31. Rb7 {[%clk 0:00:51.5]} 31... Bc4 {[%clk 0:00:58.4]} 32. Nh5 {[%clk
0:00:44.4]} 32... Kh7 {[%clk 0:00:43.6]} 33. Rb8 {[%clk 0:00:43.2]} 33... Qe7
{[%clk 0:00:38.5]} 34. Qe4+ {[%clk 0:00:36.7]} 34... f5 {[%clk 0:00:26.7]} 35.
Qf4 {[%clk 0:00:37.6]} 35... Qg5 {[%clk 0:00:18.4]} 36. Qf3 {[%clk 0:00:34.9]}
36... Rd7 {[%clk 0:00:05.8]} 37. Rc8 {[%clk 0:00:27.8]} 37... Bd5 {[%clk
0:00:05.3]} 38. Rb8 {[%clk 0:00:27.9]} 1-0

[Event "*** Qualifier 1: Titled Tuesday 3|2 Blitz"]
[Site "Chess.com"]
[Date "2017.04.04"]
[Round "6"]
[White "Yaacovn"]
[Black "johnathan113"]
[Result "0-1"]
[WhiteElo "2585"]
[BlackElo "2423"]
[TimeControl "180+2"]
[EndTime "14:26:04 PDT"]
[Termination "johnathan113 won by resignation"]

1. d4 {[%clk 0:03:00.6]} 1... Nf6 {[%clk 0:03:00.4]} 2. Nf3 {[%clk 0:03:02.5]}
2... g6 {[%clk 0:03:01.9]} 3. c4 {[%clk 0:03:03.2]} 3... Bg7 {[%clk 0:03:03.4]}
4. Nc3 {[%clk 0:03:04.9]} 4... O-O {[%clk 0:03:05]} 5. g3 {[%clk 0:03:05.7]}
5... d6 {[%clk 0:03:06.2]} 6. Bg2 {[%clk 0:03:06.6]} 6... Nc6 {[%clk 0:03:07.9]}
7. O-O {[%clk 0:03:07.6]} 7... a6 {[%clk 0:03:09.5]} 8. b3 {[%clk 0:03:08.8]}
8... Rb8 {[%clk 0:03:10.4]} 9. Bb2 {[%clk 0:03:10.2]} 9... b5 {[%clk 0:03:11.2]}
10. cxb5 {[%clk 0:03:11.6]} 10... axb5 {[%clk 0:03:13.1]} 11. Rc1 {[%clk
0:03:13.3]} 11... Bd7 {[%clk 0:03:12.8]} 12. d5 {[%clk 0:03:13.9]} 12... Na7
{[%clk 0:03:10.3]} 13. b4 {[%clk 0:03:14.8]} 13... c6 {[%clk 0:03:01.3]} 14. Nd4
{[%clk 0:03:11.1]} 14... c5 {[%clk 0:02:52.9]} 15. bxc5 {[%clk 0:03:03.1]} 15...
dxc5 {[%clk 0:02:54.8]} 16. Nc6 {[%clk 0:03:04]} 16... Bxc6 {[%clk 0:02:40]} 17.
dxc6 {[%clk 0:03:04.8]} 17... Qb6 {[%clk 0:02:36.2]} 18. Nd5 {[%clk 0:03:01.1]}
18... Nxd5 {[%clk 0:02:36.6]} 19. Bxg7 {[%clk 0:03:01.7]} 19... Rfd8 {[%clk
0:02:12.8]} 20. Be5 {[%clk 0:02:54.6]} 20... Rbc8 {[%clk 0:02:09.8]} 21. Bxd5
{[%clk 0:02:53.8]} 21... Nxc6 {[%clk 0:02:04.7]} 22. Ba1 {[%clk 0:02:48.2]}
22... e6 {[%clk 0:02:03.4]} 23. e4 {[%clk 0:02:49.1]} 23... exd5 {[%clk
0:02:03.1]} 24. exd5 {[%clk 0:02:49.8]} 24... Nd4 {[%clk 0:02:04.2]} 25. Bxd4
{[%clk 0:02:42.8]} 25... cxd4 {[%clk 0:02:06.1]} 26. Qb3 {[%clk 0:02:41.8]}
26... Rc3 {[%clk 0:01:34.3]} 27. Rxc3 {[%clk 0:02:42.1]} 27... dxc3 {[%clk
0:01:36.2]} 28. Rd1 {[%clk 0:02:39.8]} 28... Qc5 {[%clk 0:01:33.2]} 29. a3
{[%clk 0:02:27]} 29... Re8 {[%clk 0:01:10.8]} 30. Qc2 {[%clk 0:02:09.6]} 30...
Qxa3 {[%clk 0:01:11.1]} 31. d6 {[%clk 0:02:09.1]} 31... Rd8 {[%clk 0:01:10.4]}
32. d7 {[%clk 0:01:59.4]} 32... b4 {[%clk 0:01:04.8]} 33. Qe4 {[%clk 0:02:00.1]}
33... Qa4 {[%clk 0:00:41.1]} 34. Rd4 {[%clk 0:01:40.7]} 34... c2 {[%clk
0:00:41.2]} 35. Rc4 {[%clk 0:01:32.9]} 35... Qxd7 {[%clk 0:00:16.8]} 36. Qxc2
{[%clk 0:01:23.9]} 36... Rb8 {[%clk 0:00:13.7]} 37. Qb3 {[%clk 0:01:23.2]} 37...
Qe6 {[%clk 0:00:10.3]} 38. h4 {[%clk 0:01:20.7]} 38... h5 {[%clk 0:00:11.6]} 39.
Kh2 {[%clk 0:01:20.6]} 39... Kh7 {[%clk 0:00:10.1]} 40. Kg1 {[%clk 0:01:19.6]}
40... Rb5 {[%clk 0:00:11.2]} 41. Kg2 {[%clk 0:01:13.4]} 41... Qd5+ {[%clk
0:00:09.8]} 42. Kg1 {[%clk 0:01:12.7]} 42... Qe6 {[%clk 0:00:11.7]} 43. Kh2
{[%clk 0:01:13]} 43... Rf5 {[%clk 0:00:09.9]} 44. Kg2 {[%clk 0:01:02.1]} 44...
Qe2 {[%clk 0:00:10.5]} 45. Rf4 {[%clk 0:00:59.2]} 45... Rxf4 {[%clk 0:00:12]}
46. gxf4 {[%clk 0:00:59.6]} 46... Qg4+ {[%clk 0:00:13.5]} 47. Kf1 {[%clk
0:01:00.1]} 47... Qxf4 {[%clk 0:00:13.6]} 48. Qd5 {[%clk 0:01:00.9]} 48... Qf5
{[%clk 0:00:11.4]} 49. Qc4 {[%clk 0:00:57.9]} 49... Qb1+ {[%clk 0:00:06.9]} 50.
Kg2 {[%clk 0:00:58.5]} 50... Kg8 {[%clk 0:00:08.2]} 51. Qc8+ {[%clk 0:00:59]}
51... Kg7 {[%clk 0:00:09.8]} 52. Qc4 {[%clk 0:00:59]} 52... Qb2 {[%clk
0:00:10.6]} 53. Qd5 {[%clk 0:00:56.3]} 53... Qc3 {[%clk 0:00:10.9]} 54. f4
{[%clk 0:00:56.7]} 54... b3 {[%clk 0:00:10.8]} 55. f5 {[%clk 0:00:58]} 55...
Qc2+ {[%clk 0:00:11.8]} 56. Kg3 {[%clk 0:00:58.3]} 56... Qc3+ {[%clk 0:00:12.5]}
57. Kf4 {[%clk 0:00:57.4]} 57... b2 {[%clk 0:00:12.6]} 58. fxg6 {[%clk
0:00:54.3]} 58... Qf6+ {[%clk 0:00:13.6]} 59. Ke3 {[%clk 0:00:53.9]} 59... Qe6+
{[%clk 0:00:11]} 0-1

[Event "*** Qualifier 1: Titled Tuesday 3|2 Blitz"]
[Site "Chess.com"]
[Date "2017.04.04"]
[Round "6"]
[White "Generalas"]
[Black "alturas_pacificas"]
[Result "1-0"]
[WhiteElo "2200"]
[BlackElo "2041"]
[TimeControl "180+2"]
[EndTime "14:26:08 PDT"]
[Termination "Generalas won by resignation"]

1. Nf3 {[%clk 0:03:02]} 1... Nf6 {[%clk 0:03:00]} 2. b3 {[%clk 0:03:01.8]} 2...
d5 {[%clk 0:03:00.7]} 3. g4 {[%clk 0:03:02.2]} 3... Bxg4 {[%clk 0:03:00.8]} 4.
Bg2 {[%clk 0:02:57.7]} 4... c6 {[%clk 0:03:00]} 5. Bb2 {[%clk 0:02:57.7]} 5...
Nbd7 {[%clk 0:02:59.1]} 6. c4 {[%clk 0:02:48.7]} 6... e6 {[%clk 0:02:59.4]} 7.
Nc3 {[%clk 0:02:37.3]} 7... Be7 {[%clk 0:02:58.6]} 8. d3 {[%clk 0:02:35.1]} 8...
h6 {[%clk 0:02:55.9]} 9. Qd2 {[%clk 0:02:32.7]} 9... a5 {[%clk 0:02:44.6]} 10.
Rg1 {[%clk 0:02:21.2]} 10... g5 {[%clk 0:02:25.2]} 11. Bh1 {[%clk 0:02:16.1]}
11... Qc7 {[%clk 0:02:14.3]} 12. h4 {[%clk 0:02:01.5]} 12... Bxf3 {[%clk
0:02:04.1]} 13. Bxf3 {[%clk 0:01:33.7]} 13... g4 {[%clk 0:01:42.5]} 14. Bg2
{[%clk 0:01:17.5]} 14... Qh2 {[%clk 0:01:33.8]} 15. O-O-O {[%clk 0:01:17]} 15...
Qxh4 {[%clk 0:01:35.2]} 16. Kb1 {[%clk 0:01:12.1]} 16... Qxf2 {[%clk 0:01:18.9]}
17. Rdf1 {[%clk 0:01:10.7]} 17... Qc5 {[%clk 0:01:19.8]} 18. d4 {[%clk
0:01:10.3]} 18... Qb4 {[%clk 0:01:16.5]} 19. Qd3 {[%clk 0:00:36.2]} 19... a4
{[%clk 0:01:14.3]} 20. cxd5 {[%clk 0:00:23.1]} 20... cxd5 {[%clk 0:00:59.6]} 21.
Nxa4 {[%clk 0:00:21.7]} 21... Rxa4 {[%clk 0:00:51.8]} 22. bxa4 {[%clk 0:00:22]}
22... Qxa4 {[%clk 0:00:53.3]} 23. Rc1 {[%clk 0:00:21.4]} 23... Nb6 {[%clk
0:00:44.8]} 24. Rc7 {[%clk 0:00:18.1]} 24... Bd6 {[%clk 0:00:28.4]} 25. Rxb7
{[%clk 0:00:18.3]} 25... Nc4 {[%clk 0:00:29.7]} 26. Rc1 {[%clk 0:00:16.7]} 26...
O-O {[%clk 0:00:23.3]} 27. Rc3 {[%clk 0:00:02.2]} 27... Ra8 {[%clk 0:00:21.8]}
28. a3 {[%clk 0:00:02.8]} 28... Qa6 {[%clk 0:00:19.8]} 29. Rcb3 {[%clk
0:00:03.3]} 29... Nxb2 {[%clk 0:00:17.6]} 30. Qxa6 {[%clk 0:00:03.7]} 30... Rxa6
{[%clk 0:00:17.6]} 31. Kxb2 {[%clk 0:00:05.6]} 31... h5 {[%clk 0:00:17.2]} 32.
R7b6 {[%clk 0:00:06.5]} 32... Rxb6 {[%clk 0:00:17.9]} 33. Rxb6 {[%clk
0:00:08.3]} 33... Bg3 {[%clk 0:00:16.3]} 34. a4 {[%clk 0:00:08.3]} 34... Bf2
{[%clk 0:00:17.7]} 35. Rb4 {[%clk 0:00:06.7]} 35... h4 {[%clk 0:00:16.2]} 36. a5
{[%clk 0:00:07.6]} 36... h3 {[%clk 0:00:17.4]} 37. Bf1 {[%clk 0:00:06.5]} 37...
h2 {[%clk 0:00:14.2]} 38. Bg2 {[%clk 0:00:06.9]} 38... e5 {[%clk 0:00:08.3]} 39.
a6 {[%clk 0:00:06.6]} 39... Bxd4+ {[%clk 0:00:03.5]} 40. Rxd4 {[%clk 0:00:06.8]}
40... exd4 {[%clk 0:00:05.4]} 41. a7 {[%clk 0:00:08.2]} 41... d3 {[%clk
0:00:05.6]} 42. a8=Q+ {[%clk 0:00:09]} 42... Kg7 {[%clk 0:00:06.6]} 43. exd3
{[%clk 0:00:10.9]} 43... Kg6 {[%clk 0:00:06.7]} 44. Qb8 {[%clk 0:00:11.9]} 44...
Nh5 {[%clk 0:00:04.5]} 45. Qxh2 {[%clk 0:00:12.1]} 45... Kg5 {[%clk 0:00:06.4]}
46. Bxd5 {[%clk 0:00:12.4]} 46... f5 {[%clk 0:00:08.3]} 47. Qg2 {[%clk
0:00:11.9]} 47... Nf4 {[%clk 0:00:09.1]} 48. Qd2 {[%clk 0:00:12.8]} 48... g3
{[%clk 0:00:10.2]} 49. Bf3 {[%clk 0:00:13.7]} 49... g2 {[%clk 0:00:09.9]} 50.
Bxg2 {[%clk 0:00:14.1]} 50... Kg4 {[%clk 0:00:11.3]} 51. Bc6 {[%clk 0:00:14.6]}
51... Ne6 {[%clk 0:00:11.3]} 52. d4 {[%clk 0:00:15.3]} 52... f4 {[%clk
0:00:11.9]} 53. d5 {[%clk 0:00:16.4]} 53... Ng5 {[%clk 0:00:12.8]} 54. d6 {[%clk
0:00:17.2]} 54... f3 {[%clk 0:00:13.6]} 55. d7 {[%clk 0:00:17.3]} 1-0

[Event "*** Qualifier 1: Titled Tuesday 3|2 Blitz"]
[Site "Chess.com"]
[Date "2017.04.04"]
[Round "6"]
[White "Marcus_Harvey"]
[Black "TheLancer"]
[Result "0-1"]
[WhiteElo "2474"]
[BlackElo "2478"]
[TimeControl "180+2"]
[EndTime "14:26:28 PDT"]
[Termination "TheLancer won by resignation"]

1. e4 {[%clk 0:03:02]} 1... c5 {[%clk 0:03:00.8]} 2. c3 {[%clk 0:03:00.4]} 2...
g6 {[%clk 0:03:01.6]} 3. d4 {[%clk 0:02:58.7]} 3... cxd4 {[%clk 0:03:03.5]} 4.
cxd4 {[%clk 0:02:59.8]} 4... d5 {[%clk 0:03:05.1]} 5. exd5 {[%clk 0:03:00.6]}
5... Nf6 {[%clk 0:03:06.3]} 6. Nc3 {[%clk 0:02:57.8]} 6... Nxd5 {[%clk
0:03:06.9]} 7. Bc4 {[%clk 0:02:55]} 7... Nb6 {[%clk 0:03:08]} 8. Bb3 {[%clk
0:02:54.4]} 8... Bg7 {[%clk 0:03:08.5]} 9. Nf3 {[%clk 0:02:53.3]} 9... O-O
{[%clk 0:03:08.7]} 10. O-O {[%clk 0:02:50.3]} 10... Nc6 {[%clk 0:03:09.9]} 11.
Be3 {[%clk 0:02:50]} 11... Na5 {[%clk 0:03:07.6]} 12. d5 {[%clk 0:02:05.1]}
12... Nac4 {[%clk 0:02:51.3]} 13. Bd4 {[%clk 0:01:59.4]} 13... e5 {[%clk
0:02:29.9]} 14. dxe6 {[%clk 0:01:54.4]} 14... Bxe6 {[%clk 0:02:29.3]} 15. Bxg7
{[%clk 0:01:50.8]} 15... Qxd1 {[%clk 0:02:29.5]} 16. Raxd1 {[%clk 0:01:47.4]}
16... Kxg7 {[%clk 0:02:30.2]} 17. Bxc4 {[%clk 0:01:46]} 17... Bxc4 {[%clk
0:02:26.5]} 18. Rfe1 {[%clk 0:01:46.2]} 18... Rfe8 {[%clk 0:02:28]} 19. Rxe8
{[%clk 0:01:41.4]} 19... Rxe8 {[%clk 0:02:29.9]} 20. b3 {[%clk 0:01:40.3]} 20...
Be6 {[%clk 0:02:17.5]} 21. Nd4 {[%clk 0:01:38.6]} 21... a6 {[%clk 0:02:02.1]}
22. Kf1 {[%clk 0:01:37.5]} 22... Bc8 {[%clk 0:01:44]} 23. Nc2 {[%clk 0:01:29.4]}
23... Bg4 {[%clk 0:01:37.5]} 24. f3 {[%clk 0:01:28.8]} 24... Rc8 {[%clk
0:01:33.7]} 25. fxg4 {[%clk 0:01:20.1]} 25... Rxc3 {[%clk 0:01:34.4]} 26. Rd2
{[%clk 0:01:21.8]} 26... Nd5 {[%clk 0:01:09.3]} 27. Kf2 {[%clk 0:01:12.7]} 27...
Nf6 {[%clk 0:01:04.9]} 28. Ke1 {[%clk 0:00:56.1]} 28... Nxg4 {[%clk 0:00:57.6]}
29. h3 {[%clk 0:00:57.3]} 29... Nf6 {[%clk 0:00:52.8]} 30. Kd1 {[%clk
0:00:55.7]} 30... h5 {[%clk 0:00:52.4]} 31. Kc1 {[%clk 0:00:55.3]} 31... g5
{[%clk 0:00:44.2]} 32. Kb2 {[%clk 0:00:55.3]} 32... Rg3 {[%clk 0:00:34.5]} 33.
Nd4 {[%clk 0:00:53.9]} 33... Kg6 {[%clk 0:00:32.9]} 34. Nf3 {[%clk 0:00:48.3]}
34... Ne4 {[%clk 0:00:28.9]} 35. Rc2 {[%clk 0:00:42.5]} 35... f6 {[%clk
0:00:25.6]} 36. a4 {[%clk 0:00:40.7]} 36... Nd6 {[%clk 0:00:20.3]} 37. Nd4
{[%clk 0:00:39.5]} 37... Nf5 {[%clk 0:00:19.4]} 38. Ne6 {[%clk 0:00:40.4]} 38...
Ne3 {[%clk 0:00:20.1]} 39. Rc7 {[%clk 0:00:35.8]} 39... Rxg2+ {[%clk 0:00:20.8]}
40. Kc1 {[%clk 0:00:31.3]} 40... b5 {[%clk 0:00:21.2]} 41. a5 {[%clk 0:00:28.8]}
41... Ra2 {[%clk 0:00:21.1]} 42. b4 {[%clk 0:00:28.8]} 42... Ra4 {[%clk
0:00:20.8]} 43. Kd2 {[%clk 0:00:20.9]} 43... Nd5 {[%clk 0:00:21.3]} 44. Rg7+
{[%clk 0:00:22]} 44... Kf5 {[%clk 0:00:21.8]} 45. Nd4+ {[%clk 0:00:23.2]} 45...
Ke4 {[%clk 0:00:22.8]} 46. Ne2 {[%clk 0:00:16.6]} 46... Ra2+ {[%clk 0:00:22.9]}
47. Ke1 {[%clk 0:00:15.6]} 47... Ke3 {[%clk 0:00:19.9]} 48. Nc1 {[%clk 0:00:11]}
48... Rh2 {[%clk 0:00:16.7]} 49. Kf1 {[%clk 0:00:10.9]} 49... Nf4 {[%clk
0:00:15.8]} 50. Re7+ {[%clk 0:00:09.9]} 50... Kf3 {[%clk 0:00:16.6]} 51. Ke1
{[%clk 0:00:11.4]} 51... Rxh3 {[%clk 0:00:12.2]} 52. Ra7 {[%clk 0:00:10.7]}
52... Ke3 {[%clk 0:00:12.8]} 53. Kd1 {[%clk 0:00:12.1]} 53... Rh1+ {[%clk
0:00:13.5]} 54. Kc2 {[%clk 0:00:13.3]} 54... Nd5 {[%clk 0:00:14.9]} 55. Na2
{[%clk 0:00:12.3]} 55... Rh2+ {[%clk 0:00:16]} 56. Kb3 {[%clk 0:00:13.7]} 56...
Kd4 {[%clk 0:00:17.1]} 57. Rxa6 {[%clk 0:00:12.7]} 57... Rxa2 {[%clk 0:00:17.7]}
58. Rxf6 {[%clk 0:00:10.1]} 58... Ra4 {[%clk 0:00:17.1]} 59. Rf5 {[%clk
0:00:07.2]} 59... Rxb4+ {[%clk 0:00:18.5]} 60. Kc2 {[%clk 0:00:08.7]} 60... Ne3+
{[%clk 0:00:19.8]} 0-1

[Event "*** Qualifier 1: Titled Tuesday 3|2 Blitz"]
[Site "Chess.com"]
[Date "2017.04.04"]
[Round "6"]
[White "superjem123"]
[Black "PelinGorki"]
[Result "0-1"]
[WhiteElo "2500"]
[BlackElo "2398"]
[TimeControl "180+2"]
[EndTime "14:26:29 PDT"]
[Termination "PelinGorki won by checkmate"]

1. c4 {[%clk 0:03:01.2]} 1... e5 {[%clk 0:03:00.2]} 2. g3 {[%clk 0:03:02.2]}
2... Nf6 {[%clk 0:03:00.9]} 3. Bg2 {[%clk 0:03:04.1]} 3... d5 {[%clk 0:03:01.6]}
4. cxd5 {[%clk 0:03:05.3]} 4... Nxd5 {[%clk 0:03:03.3]} 5. Nc3 {[%clk
0:03:07.2]} 5... Nb6 {[%clk 0:03:04.4]} 6. Nf3 {[%clk 0:03:08.7]} 6... Nc6
{[%clk 0:03:04.6]} 7. O-O {[%clk 0:03:10.2]} 7... Be6 {[%clk 0:03:04.2]} 8. d3
{[%clk 0:03:11]} 8... f6 {[%clk 0:03:02.9]} 9. a3 {[%clk 0:03:10.7]} 9... Qd7
{[%clk 0:03:02.7]} 10. Re1 {[%clk 0:02:53.4]} 10... O-O-O {[%clk 0:03:02.9]} 11.
Be3 {[%clk 0:02:53.8]} 11... Bh3 {[%clk 0:03:00.7]} 12. Bh1 {[%clk 0:02:54.7]}
12... h5 {[%clk 0:03:01.2]} 13. Ne4 {[%clk 0:02:52.5]} 13... h4 {[%clk
0:02:57.8]} 14. Nxh4 {[%clk 0:02:49.7]} 14... Rxh4 {[%clk 0:02:52.7]} 15. gxh4
{[%clk 0:02:51.6]} 15... Nd5 {[%clk 0:02:52.9]} 16. Ng3 {[%clk 0:02:47.6]} 16...
Nxe3 {[%clk 0:02:50.3]} 17. fxe3 {[%clk 0:02:49.5]} 17... Bc5 {[%clk 0:02:47.6]}
18. Qc1 {[%clk 0:02:44.6]} 18... Bb6 {[%clk 0:02:48.5]} 19. a4 {[%clk
0:02:25.1]} 19... a5 {[%clk 0:02:37]} 20. Bxc6 {[%clk 0:02:17.1]} 20... bxc6
{[%clk 0:02:38.9]} 21. Kh1 {[%clk 0:02:07.1]} 21... Rh8 {[%clk 0:02:29.1]} 22.
h5 {[%clk 0:01:54]} 22... Bg4 {[%clk 0:02:28.3]} 23. Rg1 {[%clk 0:01:46.5]}
23... Bxh5 {[%clk 0:02:20.1]} 24. Nxh5 {[%clk 0:01:48.4]} 24... Rxh5 {[%clk
0:02:20.8]} 25. Rg3 {[%clk 0:01:46.4]} 25... g5 {[%clk 0:02:18.2]} 26. Qc4
{[%clk 0:01:34.5]} 26... Kb7 {[%clk 0:02:11.7]} 27. b4 {[%clk 0:01:32]} 27...
Qh7 {[%clk 0:02:08.3]} 28. Rg2 {[%clk 0:01:24.8]} 28... Rh4 {[%clk 0:01:57.3]}
29. d4 {[%clk 0:00:48]} 29... exd4 {[%clk 0:01:52.7]} 30. bxa5 {[%clk
0:00:45.2]} 30... Bxa5 {[%clk 0:01:52.8]} 31. Qb3+ {[%clk 0:00:38.2]} 31... Kc8
{[%clk 0:01:51.3]} 32. Rb1 {[%clk 0:00:36.4]} 32... Qe4 {[%clk 0:01:39.6]} 33.
Qg8+ {[%clk 0:00:32.1]} 33... Kd7 {[%clk 0:01:37.9]} 34. Qf7+ {[%clk 0:00:26.7]}
34... Kc8 {[%clk 0:01:36.9]} 35. Qf8+ {[%clk 0:00:22.8]} 35... Kd7 {[%clk
0:01:36.7]} 36. Rb8 {[%clk 0:00:24.2]} 36... Qe7 {[%clk 0:01:20.9]} 37. Qc8+
{[%clk 0:00:19.5]} 37... Kd6 {[%clk 0:01:20]} 38. Qa6 {[%clk 0:00:14.9]} 38...
Bb6 {[%clk 0:01:16.4]} 39. a5 {[%clk 0:00:14.9]} 39... Bc5 {[%clk 0:01:16.6]}
40. Qa8 {[%clk 0:00:10.6]} 40... Kd7 {[%clk 0:01:15.5]} 41. Rg8 {[%clk
0:00:07.6]} 41... Qf7 {[%clk 0:00:24.2]} 42. Qc8+ {[%clk 0:00:08]} 42... Kd6
{[%clk 0:00:23]} 43. Rd8+ {[%clk 0:00:07.7]} 43... Ke5 {[%clk 0:00:24.4]} 44.
Re8+ {[%clk 0:00:07.7]} 44... Kd6 {[%clk 0:00:25.5]} 45. Rd8+ {[%clk 0:00:07.3]}
45... Ke5 {[%clk 0:00:24.5]} 46. exd4+ {[%clk 0:00:08.1]} 46... Bxd4 {[%clk
0:00:22.1]} 47. Rd7 {[%clk 0:00:07.5]} 47... Qc4 {[%clk 0:00:19.9]} 48. Qxc7+
{[%clk 0:00:08.2]} 48... Kf5 {[%clk 0:00:19.1]} 49. e4+ {[%clk 0:00:07.8]} 49...
Rxe4 {[%clk 0:00:18]} 50. h3 {[%clk 0:00:05.6]} 50... Qf1+ {[%clk 0:00:14.5]}
51. Kh2 {[%clk 0:00:06.3]} 51... Be5+ {[%clk 0:00:15.5]} 52. Qxe5+ {[%clk
0:00:07.5]} 52... Rxe5 {[%clk 0:00:16.8]} 53. Rdd2 {[%clk 0:00:09]} 53... Qf4+
{[%clk 0:00:17]} 54. Kg1 {[%clk 0:00:08.9]} 54... Re1# {[%clk 0:00:18.1]} 0-1